bitfinex/quotes_ETHUSD_20250217
["timestamp","ask_amount","ask_price","bid_price","bid_amount"]
[1739807597541,3.0,2769.3,2768.6,1.6263]
[1739807597728,3.0,2769.1,2768.2,1.6401]
[1739807597885,3.0,2768.9,2768.2,1.6401]
[1739807598068,3.661141,2768.9,2768.2,1.6401]
[1739807598264,3.0,2769.4,2768.3,3.61222]
[1739807598504,0.349,2769.6,2768.3,3.61232]
[1739807598856,3.61086,2769.5,2768.3,3.61232]
[1739807598981,3.349,2769.6,2768.3,3.61232]
[1739807599168,3.349,2769.6,2768.5,3.61205]
[1739807599522,4.044954,2769.6,2768.4,3.61207]
[1739807599818,4.044954,2769.6,2765.0,2.19662324]
[1739807599819,3.0,2768.2,2765.8,0.68845388]
[1739807600126,3.61477,2766.5,2765.8,0.68845388]
[1739807600266,0.361477,2766.4,2765.8,0.68845388]
[1739807600465,3.0,2766.1,2765.8,0.68845388]
[1739807600722,3.0,2766.1,2765.1,1.5368]
[1739807600723,3.61532,2766.1,2765.1,1.5368]
[1739807600919,4.10480667,2767.2,2765.1,1.5368]
[1739807601117,5.04968525,2767.3,2765.4,3.65226979]
[1739807601118,0.19635876,2766.8,2765.4,3.65226979]
[1739807601419,0.71559015,2767.5,2765.9,1.5028]
[1739807601720,3.2203,2768.1,2765.9,1.5028]
[1739807601721,3.99301,2767.8,2766.1,3.61517]
[1739807602027,5.77077215,2768.2,2766.5,3.61467]
[1739807602331,0.1853545,2768.4,2766.7,1.5028]
[1739807602465,0.1853545,2768.4,2767.5,3.61333]
[1739807602811,0.1853545,2768.4,2767.4,5.15168]
[1739807602978,0.1853545,2768.4,2767.5,4.128528]
[1739807603310,0.1853545,2768.4,2767.9,3.61273]
[1739807603483,0.1853545,2768.4,2768.1,3.61254]
[1739807603813,0.1853545,2768.4,2768.3,1.5898]
[1739807604172,0.1853545,2768.4,2767.6,8.66283525]
[1739807604173,0.1853545,2768.4,2767.6,1.5898]
[1739807604479,0.1853545,2768.4,2767.7,0.2104968]
[1739807604824,0.1853545,2768.4,2765.4,1.5286]
[1739807604825,5.04968525,2768.1,2765.4,1.5286]
[1739807605025,3.0,2767.4,2765.4,1.5286]
[1739807605188,5.04968525,2767.2,2765.4,1.5286]
[1739807605374,3.61442,2766.7,2765.4,1.5286]
[1739807605571,5.04968525,2767.2,2765.4,1.5286]
[1739807605876,3.7975645,2768.4,2765.5,0.03615275]
[1739807605877,5.04968525,2768.0,2765.5,0.03615275]
[1739807606098,0.392,2768.2,2766.8,3.61418]
[1739807606284,0.392,2768.2,2766.9,5.24294]
[1739807606473,3.61284,2768.0,2766.9,1.6289]
[1739807606810,0.361284,2767.9,2766.9,1.6289]
[1739807607216,0.392,2768.2,2767.0,3.614]
[1739807607506,3.0,2768.1,2766.9,1.6289]
[1739807607667,3.0,2768.0,2766.9,1.6289]
[1739807607866,3.0,2767.5,2766.1,1.5999]
[1739807608065,3.0,2767.5,2766.1,5.21509]
[1739807608307,6.61389,2767.1,2766.1,1.5999]
[1739807608508,3.0,2767.1,2766.1,1.5999]
[1739807608667,0.661333,2767.4,2766.1,1.5999]
[1739807608870,4.274843,2767.4,2766.1,1.5999]
[1739807609066,3.61424,2766.9,2766.1,1.5999]
[1739807609279,3.361424,2766.8,2765.6,1.5451]
[1739807609484,8.66439525,2766.5,2765.3,0.1499003]
[1739807609708,0.361424,2766.8,2765.4,3.61611]
[1739807609914,3.61439,2766.8,2765.4,3.61611]
[1739807610078,3.6148,2766.4,2765.3,0.1499003]
[1739807610282,6.6143,2766.8,2765.3,0.1499003]
[1739807610504,3.0,2766.5,2765.3,3.7661103]
[1739807610672,7.276145,2766.5,2765.3,0.96033032]
[1739807610879,3.0,2766.1,2765.3,0.1499003]
[1739807611173,3.0,2766.4,2765.3,0.1499003]
[1739807611375,0.661455,2766.5,2765.3,3.7660403]
[1739807611737,3.61444,2766.7,2765.4,3.61602]
[1739807611939,0.55,2766.7,2765.3,0.1499003]
[1739807612077,3.61454,2766.6,2765.3,0.1499003]
[1739807612283,6.61426,2766.9,2765.4,1.6469]
[1739807612574,4.00466,2767.3,2765.5,3.61598]
[1739807612860,3.61285,2767.9,2765.3,0.1499003]
[1739807612861,3.61285,2767.9,2766.3,1.6469]
[1739807613122,3.61247,2768.2,2767.1,1.6469]
[1739807613302,5.04968525,2768.7,2767.1,1.6469]
[1739807613303,5.04968525,2768.3,2767.1,1.6469]
[1739807613610,3.61276,2768.0,2767.1,1.6469]
[1739807613817,3.61287,2767.9,2767.1,1.6469]
[1739807614165,3.61325,2767.6,2766.3,1.6592]
[1739807614410,3.61325,2767.6,2766.1,0.391]
[1739807614411,3.61206,2768.5,2766.6,5.27374]
[1739807614572,3.6122,2768.4,2767.1,3.61377]
[1739807614777,3.61206,2768.5,2767.1,3.61377]
[1739807615013,3.61206,2768.5,2767.2,3.61374]
[1739807615179,3.361206,2768.4,2767.2,4.34011445]
[1739807615379,3.61183,2768.7,2767.6,1.6592]
[1739807615380,3.61192,2768.7,2767.6,1.6592]
[1739807615589,3.61176,2768.8,2767.6,1.6592]
[1739807615989,3.61211,2768.5,2767.6,1.6592]
[1739807616217,3.61211,2768.5,2767.0,3.61397]
[1739807616218,3.61275,2768.0,2766.7,5.27351]
[1739807616416,3.61275,2768.0,2766.8,3.61427]
[1739807616711,0.361275,2767.9,2766.7,5.27358]
[1739807617299,3.0,2767.6,2766.7,1.6592]
[1739807617475,5.04968525,2768.3,2767.1,3.6138]
[1739807617681,3.61244,2768.3,2767.0,3.61398]
[1739807617876,3.0,2768.1,2767.0,0.361398]
[1739807618092,3.61273,2768.0,2767.0,0.361398]
[1739807618289,3.61258,2768.1,2766.8,3.61425]
[1739807618491,3.361244,2768.2,2766.9,3.61414]
[1739807618776,3.61258,2768.1,2766.7,1.6592]
[1739807618977,3.0,2767.8,2766.7,5.2736]
[1739807619197,3.0,2767.8,2766.7,1.6592]
[1739807619401,3.0,2767.8,2766.7,2.186571]
[1739807619602,3.0,2767.9,2766.7,2.186571]
[1739807619814,6.61285,2767.9,2766.8,3.61422]
[1739807620134,6.61285,2767.9,2766.7,2.186571]
[1739807620421,3.61297,2767.8,2766.7,2.186571]
[1739807620579,3.61314,2767.7,2766.7,1.6592]
[1739807621201,3.61289,2767.9,2766.7,1.6592]
[1739807621411,3.0,2767.8,2766.7,5.27353]
[1739807621742,3.0,2767.8,2766.7,6.162345]
[1739807621892,3.6132,2767.7,2766.7,2.548015]
[1739807622093,6.61301,2767.8,2766.7,2.548015]
[1739807622394,3.61352,2767.4,2766.7,1.6592]
[1739807622792,3.0,2767.5,2766.7,1.6592]
[1739807622994,3.61278,2768.0,2766.7,5.27351]
[1739807623191,3.0,2767.9,2766.7,1.6592]
[1739807623388,3.61322,2767.7,2766.7,1.6592]
[1739807623629,0.722608,2767.7,2766.7,1.6592]
[1739807623829,3.361244,2768.2,2766.7,1.6592]
[1739807623830,3.61296,2767.9,2766.7,5.27358]
[1739807624034,3.61297,2767.8,2766.7,1.6592]
[1739807624239,3.61297,2767.8,2766.7,5.27359]
[1739807624542,3.0,2767.9,2766.8,3.61418]
[1739807624952,6.61291,2767.9,2766.7,1.6592]
[1739807625246,3.973814,2768.2,2767.0,3.61394]
[1739807625493,3.0,2768.1,2767.0,3.61394]
[1739807625620,3.0,2768.1,2766.9,3.61413]
[1739807625818,6.61264,2768.1,2766.9,7.22821]
[1739807626015,6.61264,2768.1,2767.0,0.722821]
[1739807626219,3.61272,2768.0,2766.9,3.61408]
[1739807626459,3.0,2768.1,2767.0,3.61389]
[1739807626754,3.0,2768.1,2767.1,3.61387]
[1739807626949,6.61222,2768.4,2767.3,3.61356]
[1739807627167,3.0,2768.2,2766.7,0.527369]
[1739807627467,3.0,2768.2,2766.5,1.6101]
[1739807627468,3.61265,2768.1,2766.9,3.61406]
[1739807627664,3.0,2768.2,2767.0,1.6101]
[1739807627807,3.6122,2768.4,2767.2,3.61367]
[1739807628001,3.61212,2768.5,2767.4,3.61341]
[1739807628205,3.361212,2768.4,2767.4,3.61341]
[1739807628406,4.16143,2769.0,2767.2,3.61368]
[1739807628407,8.66097525,2769.1,2767.9,1.6101]
[1739807628866,3.61161,2768.9,2767.9,1.6101]
[1739807629163,3.61201,2768.6,2767.9,1.6101]
[1739807629336,3.61181,2768.7,2767.9,1.6101]
[1739807630154,3.61187,2768.7,2767.9,1.6101]
[1739807630308,3.61214,2768.5,2767.9,1.6101]
[1739807630526,0.361187,2768.6,2767.9,1.6101]
[1739807631251,3.61163,2768.9,2767.9,1.6101]
[1739807631419,3.61201,2768.6,2767.9,1.6101]
[1739807631826,3.61215,2768.5,2767.9,1.6101]
[1739807632347,3.0,2769.0,2767.9,1.1101]
[1739807632515,3.61171,2768.8,2767.9,1.1101]
[1739807632721,3.0,2768.7,2767.9,1.1101]
[1739807632916,3.61202,2768.6,2767.9,1.1101]
[1739807633321,3.0,2768.7,2767.9,1.1101]
[1739807633530,3.61225,2768.4,2767.9,1.1101]
[1739807633739,3.61218,2768.5,2767.9,1.1101]
[1739807633933,3.973418,2768.4,2767.9,1.1101]
[1739807634504,3.61239,2768.3,2767.9,1.1101]
[1739807634846,3.973418,2768.4,2767.9,1.1101]
[1739807635010,3.61239,2768.3,2767.9,1.1101]
[1739807635547,3.61242,2768.3,2767.9,1.1101]
[1739807635848,0.7585838,2768.3,2767.9,1.1101]
[1739807636009,5.54968525,2769.1,2767.9,1.1101]
[1739807636407,6.61167,2768.8,2767.9,1.1101]
[1739807636651,3.6118,2768.7,2767.9,1.1101]
[1739807637029,3.0,2769.0,2767.9,1.1101]
[1739807637236,6.61193,2768.6,2767.9,1.1101]
[1739807637564,4.77833153,2768.5,2767.9,1.1101]
[1739807637876,3.61183,2768.7,2767.9,1.1101]
[1739807638259,3.61183,2768.7,2766.5,3.61463]
[1739807638260,3.0,2767.9,2765.2,1.6125]
[1739807638459,3.6147,2766.5,2765.5,1.6125]
[1739807638974,3.61487,2766.4,2765.5,1.6125]
[1739807639273,3.61471,2766.5,2765.5,1.6125]
[1739807639481,0.5,2767.2,2765.5,2.15035203]
[1739807639708,3.61315,2767.7,2766.3,5.22736]
[1739807639973,3.61287,2767.9,2766.7,1.6125]
[1739807640144,3.61311,2767.7,2766.7,1.6125]
[1739807640349,0.376,2768.1,2766.8,3.61415]
[1739807640350,3.98865,2768.1,2766.8,3.61415]
[1739807640546,3.613,2767.8,2766.9,0.522665]
[1739807640748,3.613,2767.8,2766.7,5.2269]
[1739807640949,3.61271,2768.0,2766.7,5.2269]
[1739807640950,6.61291,2767.9,2766.7,1.6125]
[1739807641281,3.61387,2767.2,2766.7,1.6125]
[1739807641438,3.61371,2767.3,2766.7,1.6125]
[1739807641635,12.21350525,2767.2,2766.2,1.6032]
[1739807641883,3.61439,2766.8,2766.2,1.6032]
[1739807642373,3.61445,2766.7,2766.2,1.6032]
[1739807642672,3.61454,2766.6,2766.2,1.6032]
[1739807643373,3.61494,2766.3,2765.8,1.5831]
[1739807643571,3.0,2766.5,2765.8,1.5831]
[1739807643884,6.61471,2766.5,2765.8,1.5831]
[1739807644173,3.61481,2766.4,2765.8,1.5831]
[1739807644404,0.46518981,2766.4,2765.8,1.5831]
[1739807644556,0.46518981,2766.4,2765.3,0.1499003]
[1739807644557,3.61546,2765.9,2765.3,1.7740003]
[1739807644756,3.61556,2765.9,2765.3,1.7740003]
[1739807644957,3.0,2765.9,2765.3,1.7740003]
[1739807645451,6.61547,2765.9,2765.3,1.7740003]
[1739807645656,3.0,2765.7,2765.3,1.7740003]
[1739807645865,3.61585,2765.6,2765.3,1.7740003]
[1739807646162,3.61534,2766.0,2765.3,0.1499003]
[1739807646363,3.61511,2766.2,2765.3,0.1499003]
[1739807646594,0.98990112,2766.2,2765.3,3.7660403]
[1739807646889,3.6147,2766.5,2765.4,5.12361]
[1739807647095,3.61506,2766.2,2765.3,0.1499003]
[1739807647290,6.61611,2765.4,2765.3,0.1499003]
[1739807649177,3.0,2765.4,2765.3,0.1499003]
[1739807649697,3.61569,2765.8,2765.3,0.1499003]
[1739807649860,3.61535,2766.0,2765.3,1.7636003]
[1739807650065,8.66455525,2766.4,2765.3,1.7636003]
[1739807650266,0.73124726,2766.6,2765.3,1.7636003]
[1739807650463,5.04968525,2766.8,2766.0,1.6137]
[1739807650701,3.61472,2766.5,2766.0,1.6137]
[1739807651092,3.61494,2766.3,2766.0,1.6137]
[1739807651274,3.61519,2766.1,2765.4,1.6137]
[1739807651481,3.0,2766.1,2765.4,1.6137]
[1739807651702,3.0,2765.9,2765.4,1.6137]
[1739807651907,6.61549,2765.9,2765.4,1.6137]
[1739807652112,3.6157,2765.8,2765.4,1.6137]
[1739807652408,7.638575,2765.9,2765.4,1.6137]
[1739807652617,1.023085,2765.9,2765.4,1.6137]
[1739807652819,5.54968525,2766.4,2765.4,1.6137]
[1739807653026,5.04968525,2766.4,2765.4,1.6137]
[1739807653198,3.61467,2766.5,2765.4,1.6137]
[1739807653383,3.61471,2766.5,2765.4,1.6137]
[1739807653713,0.50496853,2766.7,2765.6,3.61576]
[1739807653910,5.04968525,2766.8,2765.6,3.61572]
[1739807654117,5.04968525,2766.8,2765.3,0.1499003]
[1739807654118,8.66352525,2767.2,2765.5,3.61598]
[1739807654415,8.66352525,2767.2,2766.1,1.5968]
[1739807654416,3.61384,2767.2,2766.1,1.5968]
[1739807654577,3.0,2767.0,2766.1,1.5968]
[1739807654773,3.0,2767.0,2766.1,5.21198]
[1739807655009,3.6141,2767.0,2766.1,1.5968]
[1739807655220,7.22823,2767.0,2766.1,1.5968]
[1739807655416,3.6141,2767.0,2766.1,2.118017]
[1739807655714,3.61355,2767.4,2766.1,5.733127]
[1739807655892,3.61377,2767.2,2766.1,2.118017]
[1739807656090,6.6139,2767.1,2766.1,2.118017]
[1739807656279,3.61377,2767.2,2766.1,5.21196]
[1739807656486,5.04968525,2767.8,2766.1,1.5968]
[1739807656826,3.0,2767.3,2766.1,1.5968]
[1739807657017,3.61396,2767.1,2766.1,1.5968]
[1739807657178,3.0,2767.3,2766.1,5.21191]
[1739807657383,3.61369,2767.3,2766.2,0.521191]
[1739807657719,3.61417,2766.9,2766.1,1.5968]
[1739807658103,3.61455,2766.6,2766.1,1.5968]
[1739807658623,3.61399,2767.1,2766.1,1.5968]
[1739807658793,8.66296525,2767.6,2766.1,1.5968]
[1739807658794,0.361399,2767.0,2766.1,1.5968]
[1739807659121,3.0,2767.3,2766.3,3.61491]
[1739807659323,8.66292525,2767.6,2766.3,3.61486]
[1739807659488,3.0,2767.5,2766.6,1.5895]
[1739807659816,3.61314,2767.7,2766.6,5.20397]
[1739807659993,6.92330876,2768.0,2766.8,3.61426]
[1739807660195,3.61381,2767.2,2766.6,1.5895]
[1739807660503,3.61397,2767.1,2766.6,1.5895]
[1739807660682,3.61453,2766.7,2765.7,1.661]
[1739807661110,3.61509,2766.2,2765.7,1.661]
[1739807661291,3.61514,2766.2,2765.7,1.661]
[1739807661900,3.61543,2766.0,2765.7,1.661]
[1739807662314,3.0,2766.3,2765.7,1.661]
[1739807662509,3.61461,2766.6,2765.7,1.661]
[1739807662712,0.361461,2766.5,2765.3,0.1499003]
[1739807662910,3.61449,2766.7,2765.6,3.61576]
[1739807663191,3.61423,2766.9,2765.8,3.61551]
[1739807663431,3.61423,2766.9,2765.9,1.5431]
[1739807663721,3.0,2766.8,2765.9,5.15851]
[1739807664024,3.0,2766.8,2765.9,1.5431]
[1739807664219,6.61406,2767.0,2765.9,5.15855]
[1739807664432,3.61366,2767.3,2766.0,0.03615115]
[1739807664587,3.61366,2767.3,2766.3,3.61491]
[1739807664782,5.04968525,2767.6,2766.3,1.5436]
[1739807665095,3.61405,2767.0,2766.3,1.5436]
[1739807665294,3.61415,2766.9,2766.3,1.5436]
[1739807665629,3.61435,2766.8,2766.3,1.5436]
[1739807665986,3.6148,2766.4,2765.4,1.5436]
[1739807666423,3.61507,2766.2,2765.4,1.5436]
[1739807666721,7.23034,2766.2,2765.4,1.5436]
[1739807666933,3.61517,2766.2,2765.4,1.5436]
[1739807667136,3.61516,2766.2,2765.4,1.5436]
[1739807667312,7.23031,2766.2,2765.4,1.5436]
[1739807667500,3.6154,2766.0,2765.4,1.5436]
[1739807667697,3.61561,2765.8,2765.4,1.5436]
[1739807668155,3.61581,2765.7,2765.4,1.5436]
[1739807668931,3.61543,2766.0,2765.4,1.5436]
[1739807669233,3.61563,2765.8,2765.4,1.5436]
[1739807669440,3.6152,2766.1,2765.4,1.5436]
[1739807669634,3.0,2766.2,2765.4,1.5436]
[1739807669795,0.5,2766.8,2765.4,5.15963]
[1739807670141,3.0,2766.4,2765.4,1.5436]
[1739807670312,3.61493,2766.3,2765.4,1.5436]
[1739807670498,3.0,2766.5,2765.4,1.5436]
[1739807670705,3.61554,2765.9,2765.4,1.5436]
[1739807671326,3.0,2765.7,2765.3,0.1499003]
[1739807671538,6.61611,2765.4,2765.3,0.1499003]
[1739807671741,6.61611,2765.4,2763.7,1.6452]
[1739807671742,3.61637,2765.2,2763.7,1.6452]
[1739807672042,3.0,2764.5,2763.7,1.6452]
[1739807672336,5.04968525,2763.8,2762.9,1.6452]
[1739807672536,3.61871,2763.5,2762.9,1.6452]
[1739807672735,0.50496853,2763.7,2762.9,1.6452]
[1739807672736,3.61846,2763.6,2762.9,1.6452]
[1739807673040,5.04968525,2764.4,2762.9,1.6452]
[1739807673341,2.168,2765.3,2764.1,3.61779]
[1739807673342,5.04968525,2765.0,2764.1,3.61779]
[1739807673560,0.52382254,2765.0,2763.9,1.5983]
[1739807673853,5.04968525,2765.5,2763.9,1.5983]
[1739807674006,3.61663,2765.1,2764.0,3.61793]
[1739807674430,3.6165,2765.1,2764.0,3.61793]
[1739807675284,6.61633,2765.3,2764.2,3.61764]
[1739807675494,8.66571525,2765.5,2764.3,5.27008]
[1739807675495,3.0,2765.4,2764.3,5.27008]
[1739807675791,8.66517525,2765.9,2764.7,3.61693]
[1739807676097,5.04968525,2765.1,2763.7,1.6526]
[1739807676230,3.61663,2765.0,2763.8,3.61814]
[1739807676434,3.61663,2765.0,2763.9,0.527074]
[1739807676670,3.61697,2764.8,2763.9,0.527074]
[1739807676885,5.04968525,2765.1,2763.7,1.6526]
[1739807676886,3.61726,2764.6,2763.7,1.6526]
[1739807677091,3.6173,2764.5,2763.7,1.6526]
[1739807677833,3.0,2765.0,2763.8,3.61808]
[1739807678037,3.0,2765.0,2763.8,3.6182]
[1739807678288,3.61617,2765.4,2764.1,3.61772]
[1739807678483,3.61599,2765.5,2764.3,3.61755]
[1739807678785,3.61599,2765.5,2764.3,3.61747]
[1739807679084,3.61645,2765.2,2764.2,1.5114]
[1739807679292,3.0,2765.1,2764.2,1.5114]
[1739807679442,3.61691,2764.8,2764.2,1.5114]
[1739807679638,3.0,2764.9,2764.2,1.5114]
[1739807680332,3.61698,2764.8,2764.2,1.5114]
[1739807680534,3.0,2764.9,2764.2,1.5114]
[1739807680968,3.61707,2764.7,2764.2,1.5114]
[1739807681180,3.61737,2764.5,2764.2,1.5114]
[1739807681493,3.0,2764.5,2763.0,1.5064]
[1739807681637,3.0,2764.0,2763.0,1.5064]
[1739807681832,3.61854,2763.6,2763.0,1.5064]
[1739807682037,5.04968525,2763.7,2763.0,1.5064]
[1739807682237,3.50496853,2763.6,2762.5,1.7951003]
[1739807682487,3.61893,2763.3,2762.5,1.7951003]
[1739807682853,0.50496853,2763.6,2762.5,0.1499003]
[1739807683058,3.61859,2763.5,2762.5,0.1499003]
[1739807683257,3.50496853,2763.6,2762.6,1.6507]
[1739807683593,4.47416538,2763.5,2762.6,1.6507]
[1739807683879,0.85546538,2763.5,2762.6,1.6507]
[1739807684077,3.61964,2762.8,2762.6,1.6507]
[1739807684233,3.61966,2762.7,2762.5,0.1499003]
[1739807684438,3.61977,2762.6,2762.5,0.1499003]
[1739807684670,4.343713,2762.6,2762.5,0.1499003]
[1739807685377,7.1703,2762.2,2762.1,0.005]
[1739807685573,12.71998525,2762.2,2762.1,0.005]
[1739807685776,3.62133,2761.5,2760.8,1.54]
[1739807685974,3.0,2761.2,2760.6,0.25]
[1739807686138,3.62226,2760.7,2760.6,0.25]
[1739807686577,4.12331,2759.9,2759.2,0.65523822]
[1739807686779,3.62554,2758.3,2757.1,0.04124513]
[1739807687078,3.6247,2758.9,2757.4,1.6288]
[1739807687252,3.62428,2759.2,2757.4,1.66506536]
[1739807687441,4.12397,2759.4,2757.9,1.6288]
[1739807687780,0.412331,2759.8,2757.3,0.04909067]
[1739807687937,5.04968525,2760.2,2757.7,1.6288]
[1739807688143,0.5,2760.3,2759.2,1.6288]
[1739807688376,3.5,2760.3,2758.2,0.0362444]
[1739807688537,3.5,2760.3,2757.3,0.01283668]
[1739807688538,0.5,2759.7,2757.4,1.513]
[1739807688866,0.5,2759.7,2757.6,1.513]
[1739807689041,0.412337,2759.7,2758.8,3.62472]
[1739807689246,5.04968525,2760.2,2758.6,1.513]
[1739807689466,3.0,2760.1,2758.6,1.513]
[1739807689669,3.0,2759.6,2758.6,1.513]
[1739807689912,3.62397,2759.4,2758.6,1.513]
[1739807690179,3.0,2758.9,2758.1,1.513]
[1739807690357,5.41208225,2759.3,2758.1,1.513]
[1739807690780,3.0,2759.2,2758.1,1.513]
[1739807690980,3.62438,2759.1,2758.1,1.513]
[1739807691359,3.0,2758.5,2757.1,0.005]
[1739807691559,3.62632,2757.7,2757.1,0.005]
[1739807691786,3.0,2757.5,2757.1,0.005]
[1739807691991,6.62686,2757.2,2757.1,0.005]
[1739807692144,4.12739,2756.8,2756.0,0.11185736]
[1739807692350,6.62776,2756.6,2756.0,0.11185736]
[1739807692661,3.62817,2756.3,2756.0,0.11185736]
[1739807692860,3.62817,2756.3,2756.0,7.36e-06]
[1739807692861,8.67799525,2756.1,2756.0,7.36e-06]
[1739807693223,0.5,2756.0,2754.6,1.6029]
[1739807693343,0.55496852,2755.9,2754.2,0.1499003]
[1739807693548,5.04968525,2755.7,2754.3,0.05450249]
[1739807693749,5.04968525,2755.7,2754.5,3.63031]
[1739807693949,5.04968525,2755.7,2754.6,0.04869426]
[1739807694149,5.04968525,2755.7,2754.6,3.6465788]
[1739807694345,5.91015063,2755.7,2754.7,0.04016184]
[1739807694585,5.86015063,2755.7,2754.7,0.04016184]
[1739807694785,3.0,2755.6,2754.7,0.04016184]
[1739807694985,3.62973,2755.1,2754.7,0.04016184]
[1739807695192,3.62973,2755.1,2753.7,3.63145]
[1739807695193,3.63187,2753.4,2753.1,0.01285626]
[1739807695352,0.5,2755.3,2753.4,1.6409]
[1739807695548,3.62771,2756.6,2753.5,0.03831618]
[1739807695549,0.55,2755.2,2753.5,0.03831618]
[1739807695750,5.04968525,2755.8,2753.5,1.67921618]
[1739807696086,0.429,2756.8,2755.4,3.62922]
[1739807696087,5.04968525,2756.4,2755.4,3.62922]
[1739807696272,5.04968525,2756.4,2755.5,3.62909]
[1739807696589,3.62626,2757.7,2755.5,3.62909]
[1739807696590,0.5,2757.1,2755.5,0.76455618]
[1739807696789,0.5,2757.1,2756.1,3.62825]
[1739807696975,3.62648,2757.5,2756.2,5.23606]
[1739807697177,0.5,2757.8,2756.6,3.62754]
[1739807697383,0.5,2757.8,2756.3,0.04487594]
[1739807697579,5.04968525,2758.3,2756.7,0.04444268]
[1739807697891,5.04968525,2758.8,2756.2,6.65758525]
[1739807698091,0.50496853,2758.7,2757.1,3.62693]
[1739807698303,0.50496853,2758.7,2756.9,1.5755]
[1739807698481,5.04968525,2758.0,2756.9,1.5755]
[1739807698687,6.40505024,2758.2,2756.9,5.20274]
[1739807698881,3.62542,2758.3,2756.9,1.5755]
[1739807699084,0.5,2758.1,2755.8,1.5742]
[1739807699262,0.5,2758.1,2754.0,3.63096]
[1739807699263,3.0,2757.0,2755.5,3.629]
[1739807699597,0.55,2756.5,2753.3,3.8073339]
[1739807699918,6.40505024,2755.6,2753.5,0.73538284]
[1739807700089,3.0,2755.5,2753.5,0.79559244]
[1739807700397,0.55,2755.0,2753.5,0.0602096]
[1739807700731,3.63025,2754.7,2753.3,0.1753539]
[1739807700876,1.5788,2755.0,2753.3,0.1753539]
[1739807700877,1.5788,2755.0,2753.7,3.63145]
[1739807701196,1.5788,2755.0,2753.7,3.63139]
[1739807701495,1.5788,2755.0,2753.3,0.1753539]
[1739807701680,1.5326,2755.9,2753.3,0.1753539]
[1739807701880,1.5326,2756.5,2753.6,3.63159]
[1739807702080,1.5326,2756.5,2753.5,0.55]
[1739807702081,0.516034,2756.4,2753.7,0.418159]
[1739807702281,3.62807,2756.3,2754.7,3.63015]
[1739807702495,3.0,2756.1,2754.4,1.5094]
[1739807702726,1.5326,2756.5,2754.6,3.63029]
[1739807703003,1.6104,2757.3,2756.4,3.6279]
[1739807703157,0.86176348,2758.1,2756.2,3.62818]
[1739807703158,1.6104,2758.1,2756.2,3.62818]
[1739807703358,1.6104,2758.1,2756.3,0.513718]
[1739807703587,1.6104,2758.1,2756.7,3.6274]
[1739807703797,1.81056437,2758.6,2756.2,0.03627119]
[1739807704010,8.21561461,2758.6,2756.2,3.62818]
[1739807704213,3.0,2758.5,2757.2,3.62673]
[1739807704359,1.81056437,2758.6,2756.5,4.5963]
[1739807704558,1.81056437,2758.6,2756.7,7.25504]
[1739807704789,4.01993866,2759.4,2757.1,0.55]
[1739807704993,4.01993866,2759.4,2757.4,0.55]
[1739807705191,4.01993866,2759.4,2758.9,3.62463]
[1739807705572,4.01993866,2759.4,2758.7,1.627]
[1739807705782,3.81983156,2759.0,2758.1,1.507]
[1739807705982,3.81983156,2759.0,2757.1,1.507]
[1739807706389,3.81983156,2759.0,2758.0,3.62578]
[1739807706706,0.55,2758.8,2757.1,1.507]
[1739807706905,10.2248818,2759.0,2757.1,1.507]
[1739807706906,0.355,2758.7,2757.1,1.507]
[1739807707070,3.81983156,2759.0,2758.2,3.62553]
[1739807707410,3.0,2758.9,2757.1,1.507]
[1739807707784,3.0,2758.9,2757.1,5.13396]
[1739807707785,6.40505024,2758.5,2757.1,5.13396]
[1739807708099,3.81983156,2759.0,2757.9,3.62587]
[1739807708100,10.2248818,2759.0,2757.9,3.62587]
[1739807708326,3.47257415,2758.4,2758.0,3.62577]
[1739807708526,3.47257415,2758.4,2757.5,3.62645]
[1739807708701,3.47257415,2758.4,2757.1,1.507]
[1739807709440,3.47257415,2758.4,2757.2,3.62686]
[1739807709642,3.47257415,2758.4,2757.1,1.507]
[1739807709841,0.34725741,2758.3,2757.1,1.507]
[1739807710011,0.34725741,2758.3,2757.2,3.62684]
[1739807710431,0.34725741,2758.3,2757.1,5.13396]
[1739807710732,3.97269741,2758.3,2757.1,1.507]
[1739807710906,0.34725741,2758.3,2757.1,1.507]
[1739807711107,0.54441316,2758.2,2757.1,1.507]
[1739807711302,6.75230765,2759.0,2757.1,1.507]
[1739807711521,0.34725741,2759.0,2757.1,1.507]
[1739807711725,6.40505024,2759.0,2757.1,1.507]
[1739807711926,3.62539,2758.4,2757.2,3.62686]
[1739807712150,3.62539,2758.4,2756.2,4.0851]
[1739807712151,0.55,2758.3,2756.6,1.5644]
[1739807712370,1.6577,2757.9,2756.8,3.62729]
[1739807712671,6.40505024,2758.0,2757.2,3.62685]
[1739807712838,7.04555526,2758.0,2757.0,3.62711]
[1739807713047,1.6577,2758.4,2757.4,3.62658]
[1739807713261,1.6577,2758.4,2756.6,1.5644]
[1739807713262,0.55,2758.3,2756.6,1.5644]
[1739807713576,1.6577,2758.4,2756.6,1.5644]
[1739807713749,1.89873327,2760.3,2757.8,3.62605]
[1739807713750,8.01405024,2759.0,2757.8,3.62605]
[1739807713952,1.20925402,2758.9,2757.8,3.62605]
[1739807714153,1.20925402,2758.9,2757.5,3.62639]
[1739807714375,1.20925402,2758.9,2756.9,0.03625987]
[1739807714676,6.40505024,2759.5,2758.4,3.62517]
[1739807714875,10.02898024,2759.5,2758.4,3.62524]
[1739807715079,10.02898024,2759.5,2757.4,1.5219]